fUST/lending_fUST_20260208
["ID","MTS","AMOUNT","RATE_DAILY","PERIOD"]
[404747994,1770507046397,-215.43336165,0.00021266,2]
[404747995,1770507046407,-300.0,0.00021366,10]
[404747998,1770507046416,-300.0,0.00021366,10]
[404748000,1770507046426,-300.0,0.00021366,10]
[404748002,1770507046435,-300.0,0.00021366,10]
[404748004,1770507046445,-300.0,0.00021366,10]
[404748006,1770507046454,-300.0,0.00021366,10]
[404748008,1770507046464,-300.0,0.00021366,10]
[404748010,1770507046473,-300.0,0.00021366,10]
[404748012,1770507046482,-300.0,0.00021366,10]
[404748014,1770507046493,-300.0,0.00021366,10]
[404748016,1770507046502,-300.0,0.00021366,10]
[404748018,1770507046511,-300.0,0.00021366,10]
[404748020,1770507046520,-300.0,0.00021366,10]
[404748022,1770507046530,-300.0,0.00021366,10]
[404748024,1770507046540,-300.0,0.00021366,10]
[404748026,1770507046551,-242.678746,0.00021993,2]
[404748028,1770507046560,-830.12576174,0.00022206,2]
[404748090,1770507047337,-453.0,0.00022206,2]
[404750683,1770507138904,-1428.80027148,0.00021984,2]
[404750750,1770508240128,-456.48568872,0.00019673,2]
[404750772,1770508246082,-4543.51431128,0.00019673,2]
[404750773,1770508246095,-10468.1601708,0.00020125,2]
[404750774,1770508246104,-150.0,0.00020125,2]
[404750775,1770508246114,-500.0,0.00020481,2]
[404750776,1770508246123,-500.0,0.00020481,2]
[404750777,1770508246133,-300.0,0.00020786,2]
[404750778,1770508246143,-300.0,0.00020786,2]
[404750779,1770508246153,-300.0,0.00020786,2]
[404750780,1770508246163,-300.0,0.00020786,2]
[404750781,1770508246174,-300.0,0.00020786,2]
[404750782,1770508246183,-300.0,0.00020786,2]
[404750783,1770508246193,-300.0,0.00020786,2]
[404750784,1770508246202,-300.0,0.00020786,2]
[404750785,1770508246212,-300.0,0.00020786,2]
[404750786,1770508246221,-300.0,0.00020786,2]
[404750787,1770508246231,-300.0,0.00020786,2]
[404750788,1770508246240,-300.0,0.00020786,2]
[404750789,1770508246250,-300.0,0.00020786,2]
[404750790,1770508246259,-300.0,0.00020786,2]
[404750791,1770508246269,-300.0,0.00020786,2]
[404750792,1770508246279,-1000.0,0.00021307,2]
[404750793,1770508246288,-177.0,0.00022125,2]
[404750794,1770508246297,-500.0,0.00022182,2]
[404750795,1770508246307,-230.70952921,0.00022182,2]
[404750796,1770508246316,-500.0,0.00022182,2]
[404750797,1770508246325,-500.0,0.00022182,2]
[404750798,1770508246335,-500.0,0.00022182,2]
[404750799,1770508246344,-500.0,0.00022182,2]
[404750800,1770508246353,-500.0,0.00022182,2]
[404750801,1770508246362,-500.0,0.00022182,2]
[404750802,1770508246371,-500.0,0.00022182,2]
[404750803,1770508246380,-316.21850461,0.00022182,2]
[404750804,1770508246390,-500.0,0.00022182,2]
[404750805,1770508246400,-500.0,0.00022182,2]
[404750806,1770508246409,-500.0,0.00022182,2]
[404750807,1770508246419,-500.0,0.00022182,2]
[404750808,1770508246427,-204.92934378,0.00022182,2]
[404750809,1770508246436,-500.0,0.00022182,2]
[404750810,1770508246446,-500.0,0.00022182,2]
[404750811,1770508246455,-201.93286099,0.00022185,2]
[404750812,1770508246464,-1000.0,0.00022185,2]
[404750813,1770508246473,-1000.0,0.00022185,2]
[404750814,1770508246482,-1000.0,0.00022185,2]
[404750815,1770508246491,-1000.0,0.00022185,2]
[404750816,1770508246500,-492.13828787,0.00022185,2]
[404750817,1770508246509,-250.0,0.00022185,2]
[404750818,1770508246518,-250.0,0.00022185,2]
[404750819,1770508246528,-250.0,0.00022185,2]
[404750820,1770508246537,-335.26760515,0.00022185,2]
[404750821,1770508246546,-250.0,0.00022185,2]
[404750822,1770508246555,-250.0,0.00022185,2]
[404750823,1770508246565,-250.0,0.00022185,2]
[404750824,1770508246574,-250.0,0.00022185,2]
[404750825,1770508246583,-250.0,0.00022185,2]
[404750826,1770508246592,-250.0,0.00022185,2]
[404750827,1770508246601,-250.0,0.00022185,2]
[404750828,1770508246611,-250.0,0.00022185,2]
[404750829,1770508246620,-250.0,0.00022185,2]
[404750830,1770508246631,-250.0,0.00022185,2]
[404750831,1770508246643,-3196.0,0.00022227,2]
[404750832,1770508246653,-506.09164999,0.00022387,2]
[404750833,1770508246662,-500.0,0.00022387,2]
[404750834,1770508246672,-500.0,0.00022387,2]
[404750835,1770508246683,-3196.0,0.00022649,2]
[404750836,1770508246692,-168.0,0.0002279,2]
[404750837,1770508246701,-196.20844418,0.000228,2]
[404750838,1770508246711,-600.0,0.00022834,10]
[404750839,1770508246720,-168.0,0.00022922,2]
[404750840,1770508246730,-400.0,0.00022947,2]
[404750841,1770508246740,-168.0,0.00022995,2]
[404750842,1770508246749,-150.0,0.00023006,30]
[404750843,1770508246758,-323.63519,0.00023006,30]
[404750844,1770508246767,-497.270381,0.00023006,30]
[404750845,1770508246776,-670.905572,0.00023006,30]
[404750846,1770508246786,-844.540763,0.00023006,30]
[404750847,1770508246795,-1018.175953,0.00023006,30]
[404750848,1770508246804,-1191.811144,0.00023006,30]
[404750849,1770508246814,-1365.446335,0.00023006,30]
[404750850,1770508246824,-1539.081526,0.00023006,30]
[404750851,1770508246833,-1712.716716,0.00023006,30]
[404750852,1770508246842,-406.0807,0.00023006,30]
[404750853,1770508246852,-150.0,0.00023006,30]
[404750854,1770508246862,-266.861106,0.00023006,30]
[404750855,1770508246871,-383.722213,0.00023006,30]
[404750856,1770508246880,-500.58332,0.00023006,30]
[404750857,1770508246889,-617.444427,0.00023006,30]
[404750858,1770508246899,-734.305534,0.00023006,30]
[404750859,1770508246908,-851.166641,0.00023006,30]
[404750860,1770508246918,-968.027748,0.00023006,30]
[404750861,1770508246927,-1084.888855,0.00023006,30]
[404750862,1770508246937,-1201.749961,0.00023006,30]
[404750863,1770508246947,-150.0,0.00023024,30]
[404750864,1770508246956,-323.635264,0.00023024,30]
[404750865,1770508246966,-497.270528,0.00023024,30]
[404750866,1770508246975,-670.905793,0.00023024,30]
[404750867,1770508246985,-844.541057,0.00023024,30]
[404750868,1770508246994,-1018.176322,0.00023024,30]
[404750869,1770508247004,-1191.811586,0.00023024,30]
[404750870,1770508247014,-1365.44685,0.00023024,30]
[404750871,1770508247023,-1539.082115,0.00023024,30]
[404750872,1770508247033,-1712.717379,0.00023024,30]
[404750873,1770508247043,-437.898763,0.00023055,30]
[404750874,1770508247053,-322.694907,0.00023063,30]
[404750875,1770508247062,-150.0,0.00023063,30]
[404750876,1770508247071,-269.435242,0.00023063,30]
[404750877,1770508247081,-388.870484,0.00023063,30]
[404750878,1770508247091,-508.305726,0.00023063,30]
[404750879,1770508247101,-627.740968,0.00023063,30]
[404750880,1770508247111,-747.17621,0.00023063,30]
[404750881,1770508247120,-168.0,0.00023122,2]
[404750882,1770508247130,-442.9,0.00023137,2]
[404750883,1770508247139,-460.760565,0.00023141,30]
[404750884,1770508247149,-600.0,0.0002315,2]
[404750885,1770508247158,-500.0,0.00023155,2]
[404750886,1770508247167,-500.0,0.00023172,2]
[404750887,1770508247176,-500.0,0.00023179,2]
[404750888,1770508247186,-168.0,0.00023197,2]
[404750889,1770508247195,-500.0,0.00023222,2]
[404750890,1770508247204,-168.0,0.00023226,2]
[404750891,1770508247213,-500.0,0.00023232,2]
[404750892,1770508247223,-500.0,0.00023249,2]
[404750893,1770508247232,-500.0,0.00023263,2]
[404750894,1770508247241,-600.0,0.00023267,2]
[404750895,1770508247251,-235.2095456,0.00023275,2]
[404750896,1770508247260,-500.0,0.00023275,2]
[404750897,1770508247269,-500.0,0.0002328,2]
[404750898,1770508247278,-248.0,0.00023289,2]
[404750899,1770508247287,-168.0,0.00023318,2]
[404750900,1770508247296,-500.0,0.00023325,2]
[404750901,1770508247305,-168.0,0.00023342,2]
[404750902,1770508247315,-248.0,0.00023356,2]
[404750903,1770508247325,-600.0,0.00023366,2]
[404750904,1770508247334,-500.0,0.00023392,2]
[404750905,1770508247343,-500.0,0.00023402,2]
[404750906,1770508247352,-500.0,0.00023408,2]
[404750907,1770508247361,-600.0,0.00023425,2]
[404750908,1770508247371,-248.0,0.00023466,2]
[404750909,1770508247380,-500.0,0.00023497,2]
[404750910,1770508247389,-168.0,0.00023501,2]
[404750911,1770508247398,-500.0,0.00023517,2]
[404750912,1770508247581,-600.0,0.00023527,2]
[404750913,1770508247593,-600.0,0.00023552,2]
[404750914,1770508247602,-500.0,0.00023578,2]
[404750915,1770508247614,-248.0,0.00023598,2]
[404750916,1770508247625,-500.0,0.00023605,2]
[404750917,1770508247636,-248.0,0.00023666,2]
[404750918,1770508247647,-600.0,0.0002368,2]
[404750919,1770508247655,-500.0,0.0002369,2]
[404750920,1770508247664,-600.0,0.00023699,2]
[404750921,1770508247676,-248.0,0.00023701,2]
[404750922,1770508247687,-248.0,0.00023741,2]
[404750923,1770508247696,-500.0,0.00023745,2]
[404750924,1770508247709,-248.0,0.00023754,2]
[404750925,1770508247718,-500.0,0.00023754,2]
[404750926,1770508247728,-600.0,0.00023765,2]
[404750927,1770508247737,-500.0,0.000238,2]
[404750928,1770508247747,-500.0,0.00023813,2]
[404750929,1770508247756,-500.0,0.00023817,2]
[404750930,1770508247765,-248.0,0.00023822,2]
[404750931,1770508247775,-500.0,0.000239,2]
[404750932,1770508247784,-600.0,0.00023931,2]
[404750933,1770508247793,-500.0,0.00023936,2]
[404750934,1770508247802,-500.0,0.00023961,2]
[404750935,1770508247811,-248.0,0.00023962,2]
[404750936,1770508247820,-248.0,0.00023975,2]
[404750937,1770508247829,-500.0,0.00023976,2]
[404750938,1770508247839,-248.0,0.00023988,2]
[404750939,1770508247848,-500.0,0.0002399,2]
[404750940,1770508247857,-3980.55,0.00024019,10]
[404750941,1770508247867,-500.0,0.00024029,2]
[404750942,1770508247876,-248.0,0.00024042,2]
[404750943,1770508247886,-500.0,0.00024068,2]
[404750944,1770508247896,-248.0,0.00024073,2]
[404750945,1770508247905,-500.0,0.0002409,2]
[404750946,1770508247915,-500.0,0.00024098,2]
[404750947,1770508247924,-600.0,0.00024111,2]
[404750948,1770508247933,-204.0,0.00024125,2]
[404750949,1770508247942,-600.0,0.00024203,2]
[404750950,1770508247952,-500.0,0.00024226,2]
[404750951,1770508247961,-500.0,0.00024229,2]
[404750952,1770508247970,-500.0,0.00024236,2]
[404750953,1770508247980,-500.0,0.00024268,2]
[404750954,1770508247989,-500.0,0.00024277,2]
[404750955,1770508247998,-600.0,0.00024309,2]
[404750956,1770508248007,-600.0,0.0002431,2]
[404750957,1770508248017,-500.0,0.00024325,2]
[404750958,1770508248027,-537.23,0.00024349,3]
[404750959,1770508248036,-500.0,0.00024359,2]
[404750960,1770508248046,-179.06,0.00024404,3]
[404750961,1770508248055,-429.75,0.00024414,3]
[404750962,1770508248064,-358.12,0.00024414,3]
[404750963,1770508248074,-500.0,0.00024424,2]
[404750964,1770508248084,-600.0,0.00024436,2]
[404750965,1770508248094,-500.0,0.0002444,2]
[404750966,1770508248103,-500.0,0.00024482,2]
[404750967,1770508248113,-600.0,0.00024493,2]
[404750968,1770508248122,-487.0,0.00024499,2]
[404750969,1770508248132,-487.0,0.00024499,2]
[404750970,1770508248141,-487.0,0.00024499,2]
[404750971,1770508248150,-956.91,0.00024499,2]
[404750972,1770508248160,-500.0,0.000245,2]
[404750973,1770508248170,-500.0,0.0002452,2]
[404750974,1770508248182,-500.0,0.00024587,2]
[404750975,1770508248195,-500.0,0.0002463,2]
[404750976,1770508248205,-500.0,0.00024631,2]
[404750977,1770508248215,-600.0,0.00024662,2]
[404750978,1770508248225,-600.0,0.00024698,2]
[404750979,1770508248236,-1027.0,0.00024732,10]
[404750980,1770508248246,-500.0,0.0002477,2]
[404750981,1770508248257,-600.0,0.00024813,2]
[404750982,1770508248267,-500.0,0.00024832,2]
[404750983,1770508248276,-600.0,0.0002484,2]
[404750984,1770508248286,-500.0,0.00024843,2]
[404750985,1770508248295,-500.0,0.00024874,2]
[404750986,1770508248306,-5735.47621397,0.000249,2]
[404750987,1770508248318,-600.0,0.00024902,2]
[404750988,1770508248327,-500.0,0.00024928,2]
[404750989,1770508248337,-600.0,0.00024935,2]
[404750990,1770508248348,-600.0,0.00024937,2]
[404750991,1770508248358,-600.0,0.00024939,2]
[404750992,1770508248367,-500.0,0.00024958,2]
[404750993,1770508248377,-908.16009513,0.00024984,2]
[404750994,1770508248387,-5735.47621397,0.0002499,2]
[404750995,1770508248398,-41574.2419693,0.00025,15]
[404750996,1770508248407,-3029.06222755,0.00025,30]
[404750997,1770508248417,-855.95088949,0.00025012,7]
[404750998,1770508248427,-600.0,0.00025066,7]
[404750999,1770508248436,-952.8439703,0.00025094,7]
[404751000,1770508248446,-720.0,0.00025117,10]
[404751001,1770508248455,-624.19749998,0.00025123,7]
[404751002,1770508248465,-492.636109,0.0002536,30]
[404751003,1770508248475,-363.03177,0.00025369,30]
[404751004,1770508248485,-518.355635,0.00025455,30]
[404751005,1770508248495,-235.2095456,0.00025647,2]
[404751006,1770508248506,-358.12,0.00025774,3]
[404751007,1770508248515,-716.24,0.00025784,3]
[404751008,1770508248524,-5735.47621397,0.0002599,2]
[404751009,1770508248533,-1027.0,0.00026,2]
[404751010,1770508248543,-231.0,0.00026125,2]
[404751011,1770508248553,-1041.66666667,0.00026194,2]
[404751012,1770508248563,-1021.0,0.00027,2]
[404751013,1770508248572,-151.0,0.00027397,2]
[404751014,1770508248582,-280.805921,0.00027397,2]
[404751015,1770508248592,-864.0,0.00027629,30]
[404751016,1770508248603,-17462.975435,0.00027629,30]
[404751017,1770508248614,-275.1,0.000277,14]
[404751018,1770508248623,-5735.47621397,0.0002789,2]
[404751019,1770508248638,-2465.07538545,0.000279,3]
[404751020,1770508248647,-949.30640036,0.0002799,2]
[404751021,1770508248657,-1021.0,0.00028,2]
[404751022,1770508248668,-1000.79142467,0.00028,5]
[404751023,1770508248679,-235.2095456,0.0002802,2]
[404751024,1770508248688,-1500.0,0.000281,3]
[404751025,1770508248698,-258.0,0.00028125,2]
[404751026,1770508248709,-151.0,0.000282,14]
[404751027,1770508248719,-5735.47621397,0.0002839,2]
[404751028,1770508248730,-80472.25047152,0.000284,2]
[404751029,1770508248740,-162.58,0.000284,7]
[404751030,1770508248751,-3384.94,0.000285,2]
[404751031,1770508248761,-600.0,0.000285,2]
[404751032,1770508248772,-151.0,0.000286,15]
[404751033,1770508248782,-500.0,0.0002863,30]
[404751034,1770508248794,-500.0,0.0002863,30]
[404751035,1770508248804,-500.0,0.0002863,30]
[404751036,1770508248815,-500.0,0.0002863,30]
[404751037,1770508248826,-500.0,0.0002863,30]
[404751038,1770508248836,-500.0,0.0002863,30]
[404751039,1770508248847,-500.0,0.0002863,30]
[404751040,1770508248858,-158.77736211,0.0002863,30]
[404751041,1770508248868,-17206.4286419,0.00028699,2]
[404751042,1770508248879,-11275.66856004,0.00028709,2]
[404751043,1770508248889,-44832.99543469,0.00028709,2]
[404751044,1770508248900,-11324.1446688,0.00028709,2]
[404751045,1770508248910,-59862.52997817,0.00028709,2]
[404751046,1770508248922,-160.0,0.00028821,3]
[404751047,1770508248932,-160.0,0.00028821,5]
[404751048,1770508248942,-5735.47621397,0.0002898,2]
[404751049,1770508248951,-203.16836152,0.00028989,2]
[404751050,1770508248960,-606.06343107,0.0002899,2]
[404751051,1770508248970,-936869.91168644,0.00028999,2]
[404751052,1770508248979,-1034.80055625,0.00028999,2]
[404751053,1770508248989,-427835.01403034,0.00029,2]
[404751054,1770508248999,-1006.0,0.00029,10]
[404751055,1770508249009,-3059729.85201343,0.00029,2]
[404751056,1770508249019,-250.0,0.00029,7]
[404751057,1770508249028,-250.0,0.00029,7]
[404751058,1770508249038,-250.0,0.00029,7]
[404751059,1770508249047,-250.0,0.00029,7]
[404751060,1770508249057,-250.0,0.00029,7]
[404751061,1770508249066,-250.0,0.00029,7]
[404751062,1770508249076,-250.0,0.00029,7]
[404751063,1770508249085,-250.0,0.00029,7]
[404751064,1770508249095,-221.8,0.00029,7]
[404751065,1770508249104,-168.67,0.00029,7]
[404751066,1770508249113,-174.08,0.00029,7]
[404751067,1770508249123,-2209.15,0.00029,2]
[404751068,1770508249132,-170.66,0.00029,7]
[404751069,1770508249141,-250.0,0.00029,2]
[404751070,1770508249151,-1021.0,0.00029,2]
[404751071,1770508249160,-849187.25914498,0.000295,2]
[404751072,1770508249169,-275.1,0.000295,14]
[404751073,1770508249178,-8659.07284621,0.00029688,26]
[404751074,1770508249190,-7906.20914699,0.00029694,27]
[404751075,1770508249202,-5000.0,0.00029694,27]
[404751076,1770508249214,-1490.17903114,0.00029703,21]
[404751077,1770508249225,-4235.7956294,0.0002972,23]
[404751078,1770508249236,-2000.0,0.000298,7]
[404751079,1770508249247,-410064.84862506,0.000298,7]
[404751080,1770508249258,-741.63626124,0.000298,7]
[404751081,1770508249268,-34241.76258199,0.00029836,2]
[404751082,1770508249279,-2000.0,0.000299,7]
[404751083,1770508249289,-218.949381,0.00029971,30]
[404751084,1770508249300,-161.347453,0.00029982,30]
[404751085,1770508249310,-7567.96,0.0003,7]
[404751086,1770508249319,-1000.0,0.0003,2]
[404751087,1770508249330,-379.0,0.0003,8]
[404751088,1770508249341,-165.46,0.0003,5]
[404751089,1770508249353,-270.45284688,0.0003,2]
[404751090,1770508249363,-2991.62773953,0.0003,7]
[404751091,1770508249373,-20000.0,0.0003,4]
[404751092,1770508249382,-1000.0,0.0003,20]
[404751093,1770508249391,-21258.99950202,0.0003,20]
[404751094,1770508249400,-24957.30095851,0.0003,2]
[404751095,1770508249409,-18414.01408859,0.0003,30]
[404751096,1770508249419,-15265.26826988,0.0003,2]
[404751097,1770508249428,-250.0,0.0003,2]
[404751098,1770508249438,-158.47114143,0.0003,2]
[404751099,1770508249447,-1021.0,0.0003,7]
[404751100,1770508249456,-1501.840723,0.0003,2]
[404751101,1770508249465,-200.0,0.00030082,7]
[404751102,1770508249475,-345.570423,0.00030083,30]
[404751103,1770508249484,-285.0,0.00030125,2]
[404751104,1770508249494,-150.0,0.0003013,2]
[404751105,1770508249503,-499.94005754,0.0003013,2]
[404751106,1770508249512,-1291.0,0.00030136,2]
[404751107,1770508249521,-869.85013166,0.00030137,30]
[404751108,1770508249530,-500.0,0.00030137,10]
[404751109,1770508249539,-500.0,0.00030137,10]
[404751110,1770508249548,-500.0,0.00030137,2]
[404751111,1770508249558,-500.0,0.00030137,7]
[404751112,1770508249567,-358.56,0.00030137,2]
[404751113,1770508249576,-387.78,0.00030137,7]
[404751114,1770508249586,-3459.0,0.00030137,7]
[404751115,1770508249595,-10000.0,0.00030137,7]
[404751116,1770508249604,-10000.0,0.00030137,7]
[404751117,1770508249613,-10000.0,0.00030137,7]
[404751118,1770508249622,-10000.0,0.00030137,7]
[404751119,1770508249631,-7235.0,0.00030137,7]
[404751120,1770508249644,-7115.693189,0.00030137,120]
[404751121,1770508249652,-30000.0,0.00030137,120]
[404751122,1770508249661,-152.6467311,0.00030137,10]
[404751123,1770508249671,-189.12,0.00030137,2]
[404751124,1770508249681,-288425.28192211,0.00030149,30]
[404751125,1770508249690,-176.83947287,0.00030151,120]
[404751126,1770508249699,-350.0,0.00030192,4]
[404751127,1770508249709,-350.0,0.00030192,4]
[404751128,1770508249718,-460.0,0.00030192,4]
[404751129,1770508249728,-492.0,0.00030192,4]
[404751130,1770508249737,-499.0,0.00030192,4]
[404751131,1770508249747,-500.0,0.00030192,4]
[404751132,1770508249756,-500.0,0.00030192,4]
[404751133,1770508249765,-500.0,0.00030192,4]
[404751134,1770508249774,-500.0,0.00030192,4]
[404751135,1770508249783,-500.0,0.00030192,4]
[404751136,1770508249792,-500.0,0.00030192,4]
[404751137,1770508249802,-500.0,0.00030192,4]
[404751138,1770508249811,-500.0,0.00030192,4]
[404751139,1770508249820,-500.0,0.00030192,4]
[404751140,1770508249829,-500.0,0.00030192,4]
[404751141,1770508249838,-500.0,0.00030192,4]
[404751142,1770508249848,-500.0,0.00030192,4]
[404751143,1770508249857,-500.0,0.00030192,4]
[404751144,1770508249866,-500.0,0.00030192,4]
[404751145,1770508249876,-500.0,0.00030192,4]
[404751146,1770508249885,-500.0,0.00030192,4]
[404751147,1770508249895,-500.0,0.00030192,4]
[404751148,1770508249906,-500.0,0.00030192,4]
[404751149,1770508249916,-500.0,0.00030192,4]
[404751150,1770508249926,-500.0,0.00030192,4]
[404751151,1770508249935,-500.0,0.00030192,4]
[404751152,1770508249944,-500.0,0.00030192,4]
[404751153,1770508249954,-500.0,0.00030192,4]
[404751154,1770508249963,-500.0,0.00030192,4]
[404751155,1770508249972,-500.0,0.00030192,4]
[404751156,1770508249982,-500.0,0.00030192,4]
[404751157,1770508249992,-500.0,0.00030192,4]
[404751158,1770508250001,-500.0,0.00030192,4]
[404751159,1770508250010,-500.0,0.00030192,4]
[404751160,1770508250020,-500.0,0.00030192,4]
[404751161,1770508250029,-500.0,0.00030192,4]
[404751162,1770508250038,-500.0,0.00030192,4]
[404751163,1770508250047,-500.0,0.00030192,4]
[404751164,1770508250056,-500.0,0.00030192,4]
[404751165,1770508250066,-302.0,0.00030192,4]
[404751166,1770508250075,-270.0,0.00030192,4]
[404751167,1770508250084,-264.0,0.00030192,4]
[404751168,1770508250182,-262.0,0.00030192,4]
[404751169,1770508250203,-332.0,0.00030192,4]
[404751170,1770508250213,-206.0,0.00030192,4]
[404751171,1770508250222,-157.0,0.00030192,4]
[404751172,1770508250231,-150.0,0.00030192,4]
[404751173,1770508250240,-150.0,0.00030192,4]
[404751174,1770508250250,-450.0,0.00030233,4]
[404751175,1770508250258,-500.0,0.00030233,4]
[404751176,1770508250267,-500.0,0.00030233,4]
[404751177,1770508250277,-500.0,0.00030233,4]
[404751178,1770508250286,-500.0,0.00030233,4]
[404751179,1770508250295,-500.0,0.00030233,4]
[404751180,1770508250304,-500.0,0.00030233,4]
[404751181,1770508250313,-500.0,0.00030233,4]
[404751182,1770508250323,-500.0,0.00030233,4]
[404751183,1770508250333,-500.0,0.00030233,4]
[404751184,1770508250344,-500.0,0.00030233,4]
[404751185,1770508250356,-500.0,0.00030233,4]
[404751186,1770508250367,-500.0,0.00030233,4]
[404751187,1770508250377,-500.0,0.00030233,4]
[404751188,1770508250389,-500.0,0.00030233,4]
[404751189,1770508250400,-500.0,0.00030233,4]
[404751190,1770508250410,-500.0,0.00030233,4]
[404751191,1770508250422,-500.0,0.00030233,4]
[404751192,1770508250433,-500.0,0.00030233,4]
[404751193,1770508250443,-500.0,0.00030233,4]
[404751194,1770508250452,-500.0,0.00030233,4]
[404751195,1770508250463,-500.0,0.00030233,4]
[404751196,1770508250474,-500.0,0.00030233,4]
[404751197,1770508250484,-500.0,0.00030233,4]
[404751198,1770508250494,-500.0,0.00030233,4]
[404751199,1770508250505,-500.0,0.00030233,4]
[404751200,1770508250515,-500.0,0.00030233,4]
[404751201,1770508250527,-500.0,0.00030233,4]
[404751202,1770508250540,-500.0,0.00030233,4]
[404751203,1770508250552,-500.0,0.00030233,4]
[404751204,1770508250562,-500.0,0.00030233,4]
[404751205,1770508250572,-500.0,0.00030233,4]
[404751206,1770508250582,-500.0,0.00030233,4]
[404751207,1770508250592,-500.0,0.00030233,4]
[404751208,1770508250602,-500.0,0.00030233,4]
[404751209,1770508250612,-500.0,0.00030233,4]
[404751210,1770508250621,-500.0,0.00030233,4]
[404751211,1770508250631,-500.0,0.00030233,4]
[404751212,1770508250644,-390.0,0.00030233,4]
[404751213,1770508250653,-348.0,0.00030233,4]
[404751214,1770508250662,-340.0,0.00030233,4]
[404751215,1770508250674,-338.0,0.00030233,4]
[404751216,1770508250686,-428.0,0.00030233,4]
[404751217,1770508250695,-384.0,0.00030233,4]
[404751218,1770508250705,-293.0,0.00030233,4]
[404751219,1770508250715,-350.0,0.00030233,4]
[404751220,1770508250726,-350.0,0.00030233,4]
[404751221,1770508250736,-450.0,0.00030233,4]
[404751222,1770508250747,-300.0,0.00030288,2]
[404751223,1770508250758,-1000.0,0.00030392,30]
[404751224,1770508250769,-1205.0,0.000304,2]
[404751225,1770508250779,-1205.0,0.000304,3]
[404751226,1770508250790,-1205.0,0.000304,3]
[404751227,1770508250800,-200.0,0.00030656,120]
[404751228,1770508250810,-741.63626124,0.000307,7]
[404751229,1770508250819,-200.0,0.00030954,120]
[404751230,1770508250830,-200.0,0.00030977,120]
[404751231,1770508250840,-306.8690357,0.0003099,2]
[404751232,1770508250851,-6071.36976274,0.00031,30]
[404751233,1770508250861,-487.12013914,0.00031,2]
[404751234,1770508250871,-173.32921599,0.00031,120]
[404751235,1770508250882,-440.22114767,0.00031,120]
[404751236,1770508250891,-178.91791109,0.00031,120]
[404751237,1770508250900,-443.90064662,0.00031,120]
[404751238,1770508250910,-433.90772374,0.00031,120]
[404751239,1770508250919,-166.31365596,0.00031,120]
[404751240,1770508250928,-739.34954133,0.00031,120]
[404751241,1770508250937,-433.42433757,0.00031,120]
[404751242,1770508250947,-425.42284624,0.00031,120]
[404751243,1770508250959,-179.58655025,0.00031,120]
[404751244,1770508250968,-173.17824197,0.00031,120]
[404751245,1770508250979,-413.21663302,0.00031,120]
[404751246,1770508250988,-404.95914319,0.00031,120]
[404751247,1770508250998,-188.11813468,0.00031,120]
[404751248,1770508251008,-2209.15,0.00031,2]
[404751249,1770508251017,-250.0,0.00031,2]
[404751250,1770508251027,-227.30747503,0.00031,120]